{"text_format":"1","workbook":"xlsx","n_sheets":2,"sheets":["data","control"],"not_rendered":{"charts":0,"images":0,"macros":1,"external_links":0,"defined_names":4,"comments":0,"pivot_tables":0},"unopened":[],"bounds":{"document_bytes":16777216,"sheet_cells":100000,"rows_first":2000,"rows_last":500,"rows_between":2000,"halvings":0,"cell_chars":16384,"cell_head_chars":4096},"cells_cut":0,"cells_raw":0,"read":"whole","date_system":"1900"}

{"sheet":"data","index":0,"n_rows":98,"n_cols":5,"rows_kept":98,"cut":false,"hidden":false,"merged":[]}
[]
[null,"Data",null,null,"Table has to be sorted ascending by [Route ID] and [Path ID]!"]
[]
[null,"Route ID","Path ID","City","Value"]
[null,1,1,"Albuquerque, New Mexico",100000]
[null,1,2,"Green Valley, Arizona",95682]
[null,1,3,"Roosevelt, Utah",91405]
[null,1,4,"Paradise, Nevada",86378]
[null,1,5,"Fremont, California",81842]
[null,1,6,"Madras, Oregon",77166]
[null,1,7,"Star, Idaho",71459]
[null,1,8,"Billings, Montana",65911]
[null,1,9,"Dickinson, North Dakota",60740]
[null,1,10,"Madison, South Dakota",56410]
[null,1,11,"Gillette, Wyoming",51108]
[null,1,12,"Security-Widefield, Colorado",41257]
[null,1,13,"Manhattan, Kansas",36628]
[null,1,14,"Ladue, Missouri",32042]
[null,1,15,"Jonesborough, Tennessee",27586]
[null,1,16,"Olive Branch, Mississippi",22205]
[null,1,17,"Destrehan, Louisiana",17228]
[null,1,18,"Windcrest, Texas",12265]
[null,1,19,"The Village, Oklahoma",7434]
[null,1,20,"Albuquerque, New Mexico",0]
[null,2,1,"Dallas, Texas",200000]
[null,2,2,"Destrehan, Louisiana",191136]
[null,2,3,"Olive Branch, Mississippi",182315]
[null,2,4,"Andalusia, Alabama",172473]
[null,2,5,"Cheval, Florida",163338]
[null,2,6,"Calhoun, Georgia",144138]
[null,2,7,"Murrells Inlet, South Carolina",135648]
[null,2,8,"James City, North Carolina",124851]
[null,2,9,"Huntington, Virginia",116066]
[null,2,10,"Philadelphia, Pennsylvania",85080]
[null,2,11,"Fairview Park, Ohio",75467]
[null,2,12,"Greenwood, Indiana",64782]
[null,2,13,"Bellwood, Illinois",56350]
[null,2,14,"Hudson, Wisconsin",46079]
[null,2,15,"Burlington, Iowa",37541]
[null,2,16,"Blair, Nebraska",27530]
[null,2,17,"Manhattan, Kansas",19492]
[null,2,18,"The Village, Oklahoma",9133]
[null,2,19,"Dallas, Texas",0]
[null,3,1,"Denver, Colorado",50000]
[null,3,2,"Shiprock, New Mexico",47686]
[null,3,3,"Green Valley, Arizona",45265]
[null,3,4,"Roosevelt, Utah",43306]
[null,3,5,"Paradise, Nevada",41122]
[null,3,6,"Fremont, California",38686]
[null,3,7,"Madras, Oregon",36094]
[null,3,8,"Star, Idaho",33571]
[null,3,9,"Gillette, Wyoming",30974]
[null,3,10,"Blair, Nebraska",28726]
[null,3,11,"Burlington, Iowa",26227]
[null,3,12,"Winthrop Harbor, Illinois",24115]
[null,3,13,"Greenwood, Indiana",21581]
[null,3,14,"Fairview Park, Ohio",19359]
[null,3,15,"Harrodsburg, Kentucky",17160]
[null,3,16,"Ladue, Missouri",14833]
[null,3,17,"Blytheville, Arkansas",12825]
[null,3,18,"Olive Branch, Mississippi",10360]
[null,3,19,"Destrehan, Louisiana",8440]
[null,3,20,"Windcrest, Texas",6293]
[null,3,21,"The Village, Oklahoma",4140]
[null,3,22,"Manhattan, Kansas",1673]
[null,3,23,"Denver, Colorado",0]
[null,4,1,"Detroit, Michigan",0]
[null,4,2,"Harrodsburg, Kentucky",7816]
[null,4,3,"Nanuet, New York",25808]
[null,4,4,"Morristown, Vermont",41946]
[null,4,5,"Buxton, Maine",60184]
[null,4,6,"Fairhaven, Massachusetts",74655]
[null,4,7,"Fort Meade, Maryland",110394]
[null,4,8,"James City, North Carolina",129535]
[null,4,9,"Murrells Inlet, South Carolina",144402]
[null,4,10,"Calhoun, Georgia",163755]
[null,4,11,"Miami, Florida",181668]
[null,4,12,"Andalusia, Alabama",197835]
[null,4,13,"Brookhaven, Mississippi",212227]
[null,4,14,"Blytheville, Arkansas",230710]
[null,4,15,"Ladue, Missouri",247894]
[null,4,16,"Winthrop Harbor, Illinois",283338]
[null,4,17,"Detroit, Michigan",300000]
[null,5,1,"Nashville, Tennessee",238378]
[null,5,2,"Cross Lanes, West Virginia",202363]
[null,5,3,"Fairview Park, Ohio",428620]
[null,5,4,"Greenwood, Indiana",148380]
[null,5,5,"Winthrop Harbor, Illinois",81080]
[null,5,6,"Des Moines, Iowa",428316]
[null,5,7,"Columbus, Nebraska",363195]
[null,5,8,"Gillette, Wyoming",322783]
[null,5,9,"Star, Idaho",121429]
[null,5,10,"Paradise, Nevada",125588]
[null,5,11,"Green Valley, Arizona",241857]
[null,5,12,"Albuquerque, New Mexico",560266]
[null,5,13,"The Village, Oklahoma",273333]
[null,5,14,"Blytheville, Arkansas",69061]
[null,5,15,"Nashville, Tennessee",196645]

{"sheet":"control","index":1,"n_rows":69,"n_cols":10,"rows_kept":69,"cut":false,"hidden":false,"merged":[]}
[]
[null,"Control"]
[]
[null,"Show all cities",false]
[null,"Show data labels",true]
[null,"Selected City Index",5]
[null,"Selected City",{"$f":"INDEX($B$12:$B$16,$C$6)","v":"Nashville, Tennessee"}]
[null,"Selected City Latitude",36.165889999999997]
[null,"Selected City Longitude",-86.784440000000004]
[]
[null,"List of starting points"]
[null,"Albuquerque, New Mexico"]
[null,"Dallas, Texas"]
[null,"Denver, Colorado"]
[null,"Detroit, Michigan"]
[null,"Nashville, Tennessee"]
[]
[null,"Start Position",{"$f":"MATCH($C$6,tab_data[Route ID],0)","v":80}]
[null,"Occurrences",{"$f":"COUNTIF(tab_data[Route ID],$C$6)","v":15}]
[]
[null,"Min value",{"$f":"_xlfn.MINIFS(tab_data[Value],tab_data[Route ID],$C$6)","v":{"$error":"#NAME?"}},{"$f":"MIN(IF(tab_data[Value],tab_data[Route ID],$C$6))","v":1}]
[null,"Max value",{"$f":"_xlfn.MAXIFS(tab_data[Value],tab_data[Route ID],$C$6)","v":{"$error":"#NAME?"}},{"$f":"MAX(IF(tab_data[Value],tab_data[Route ID],$C$6))","v":5}]
[null,"Steps",{"$f":"MAX(0.01,(C22-C21)/COUNTA(C28:C37))","v":{"$error":"#NAME?"}}]
[null,"Start Value",2]
[null,"Width steps",0.75]
[]
[null,"Value","Line Width"]
[null,{"$f":"C21","v":{"$error":"#NAME?"}},{"$f":"C24","v":2}]
[null,{"$f":"B28+$C$23","v":{"$error":"#NAME?"}},{"$f":"C28+$C$25","v":2.75}]
[null,{"$f":"B29+$C$23","v":{"$error":"#NAME?"}},{"$f":"C29+$C$25","v":3.5}]
[null,{"$error":"#NAME?"},4.25]
[null,{"$error":"#NAME?"},5]
[null,{"$error":"#NAME?"},5.75]
[null,{"$error":"#NAME?"},6.5]
[null,{"$error":"#NAME?"},7.25]
[null,{"$error":"#NAME?"},8]
[null,{"$error":"#NAME?"},8.75]
[]
[null,"Index","Index Targets","Relevant","City","Position","Latitude","Longitude","Value","Line Width"]
[null,1,{"$f":"$C$18+tab_lines[[#This Row],[Index]]-1","v":80},{"$f":"tab_lines[[#This Row],[Index]]<=$C$19","v":true},{"$f":"IF(tab_lines[[#This Row],[Relevant]],INDEX(tab_data[City],tab_lines[[#This Row],[Index Targets]]),\"-\")","v":"Nashville, Tennessee"},5611,36.165889999999997,-86.784440000000004,238378,{"$f":"IF(tab_lines[[#This Row],[Relevant]],VLOOKUP(tab_lines[[#This Row],[Value]],tab_line_widths[],2,TRUE),0)","v":{"$error":"#N/A"}}]
[null,2,{"$f":"$C$18+tab_lines[[#This Row],[Index]]-1","v":81},{"$f":"tab_lines[[#This Row],[Index]]<=$C$19","v":true},{"$f":"IF(tab_lines[[#This Row],[Relevant]],INDEX(tab_data[City],tab_lines[[#This Row],[Index Targets]]),\"-\")","v":"Cross Lanes, West Virginia"},6510,38.420369999999998,-81.790679999999995,202363,{"$f":"IF(tab_lines[[#This Row],[Relevant]],VLOOKUP(tab_lines[[#This Row],[Value]],tab_line_widths[],2,TRUE),0)","v":{"$error":"#N/A"}}]
[null,3,{"$f":"$C$18+tab_lines[[#This Row],[Index]]-1","v":82},{"$f":"tab_lines[[#This Row],[Index]]<=$C$19","v":true},{"$f":"IF(tab_lines[[#This Row],[Relevant]],INDEX(tab_data[City],tab_lines[[#This Row],[Index Targets]]),\"-\")","v":"Fairview Park, Ohio"},4737,41.44144,-81.8643,428620,{"$f":"IF(tab_lines[[#This Row],[Relevant]],VLOOKUP(tab_lines[[#This Row],[Value]],tab_line_widths[],2,TRUE),0)","v":{"$error":"#N/A"}}]
[null,4,{"$f":"$C$18+tab_lines[[#This Row],[Index]]-1","v":83},{"$f":"tab_lines[[#This Row],[Index]]<=$C$19","v":true},{"$f":"IF(tab_lines[[#This Row],[Relevant]],INDEX(tab_data[City],tab_lines[[#This Row],[Index Targets]]),\"-\")","v":"Greenwood, Indiana"},2214,39.613660000000003,-86.106650000000002,148380,{"$f":"IF(tab_lines[[#This Row],[Relevant]],VLOOKUP(tab_lines[[#This Row],[Value]],tab_line_widths[],2,TRUE),0)","v":{"$error":"#N/A"}}]
[null,5,{"$f":"$C$18+tab_lines[[#This Row],[Index]]-1","v":84},{"$f":"tab_lines[[#This Row],[Index]]<=$C$19","v":true},{"$f":"IF(tab_lines[[#This Row],[Relevant]],INDEX(tab_data[City],tab_lines[[#This Row],[Index Targets]]),\"-\")","v":"Winthrop Harbor, Illinois"},2158,42.478909999999999,-87.823679999999996,81080,{"$f":"IF(tab_lines[[#This Row],[Relevant]],VLOOKUP(tab_lines[[#This Row],[Value]],tab_line_widths[],2,TRUE),0)","v":{"$error":"#N/A"}}]
[null,6,{"$f":"$C$18+tab_lines[[#This Row],[Index]]-1","v":85},{"$f":"tab_lines[[#This Row],[Index]]<=$C$19","v":true},{"$f":"IF(tab_lines[[#This Row],[Relevant]],INDEX(tab_data[City],tab_lines[[#This Row],[Index Targets]]),\"-\")","v":"Des Moines, Iowa"},2320,41.600540000000002,-93.609110000000001,428316,{"$f":"IF(tab_lines[[#This Row],[Relevant]],VLOOKUP(tab_lines[[#This Row],[Value]],tab_line_widths[],2,TRUE),0)","v":{"$error":"#N/A"}}]
[null,7,{"$f":"$C$18+tab_lines[[#This Row],[Index]]-1","v":86},{"$f":"tab_lines[[#This Row],[Index]]<=$C$19","v":true},{"$f":"IF(tab_lines[[#This Row],[Relevant]],INDEX(tab_data[City],tab_lines[[#This Row],[Index Targets]]),\"-\")","v":"Columbus, Nebraska"},3659,41.429729999999999,-97.368380000000002,363195,{"$f":"IF(tab_lines[[#This Row],[Relevant]],VLOOKUP(tab_lines[[#This Row],[Value]],tab_line_widths[],2,TRUE),0)","v":{"$error":"#N/A"}}]
[null,8,{"$f":"$C$18+tab_lines[[#This Row],[Index]]-1","v":87},{"$f":"tab_lines[[#This Row],[Index]]<=$C$19","v":true},{"$f":"IF(tab_lines[[#This Row],[Relevant]],INDEX(tab_data[City],tab_lines[[#This Row],[Index Targets]]),\"-\")","v":"Gillette, Wyoming"},6682,44.291089999999997,-105.50221999999999,322783,{"$f":"IF(tab_lines[[#This Row],[Relevant]],VLOOKUP(tab_lines[[#This Row],[Value]],tab_line_widths[],2,TRUE),0)","v":{"$error":"#N/A"}}]
[null,9,{"$f":"$C$18+tab_lines[[#This Row],[Index]]-1","v":88},{"$f":"tab_lines[[#This Row],[Index]]<=$C$19","v":true},{"$f":"IF(tab_lines[[#This Row],[Relevant]],INDEX(tab_data[City],tab_lines[[#This Row],[Index Targets]]),\"-\")","v":"Star, Idaho"},1818,43.69211,-116.49346,121429,{"$f":"IF(tab_lines[[#This Row],[Relevant]],VLOOKUP(tab_lines[[#This Row],[Value]],tab_line_widths[],2,TRUE),0)","v":{"$error":"#N/A"}}]
[null,10,{"$f":"$C$18+tab_lines[[#This Row],[Index]]-1","v":89},{"$f":"tab_lines[[#This Row],[Index]]<=$C$19","v":true},{"$f":"IF(tab_lines[[#This Row],[Relevant]],INDEX(tab_data[City],tab_lines[[#This Row],[Index Targets]]),\"-\")","v":"Paradise, Nevada"},3707,36.097189999999998,-115.14666,125588,{"$f":"IF(tab_lines[[#This Row],[Relevant]],VLOOKUP(tab_lines[[#This Row],[Value]],tab_line_widths[],2,TRUE),0)","v":{"$error":"#N/A"}}]
[null,11,{"$f":"$C$18+tab_lines[[#This Row],[Index]]-1","v":90},{"$f":"tab_lines[[#This Row],[Index]]<=$C$19","v":true},{"$f":"IF(tab_lines[[#This Row],[Relevant]],INDEX(tab_data[City],tab_lines[[#This Row],[Index Targets]]),\"-\")","v":"Green Valley, Arizona"},155,31.85425,-110.9937,241857,{"$f":"IF(tab_lines[[#This Row],[Relevant]],VLOOKUP(tab_lines[[#This Row],[Value]],tab_line_widths[],2,TRUE),0)","v":{"$error":"#N/A"}}]
[null,12,{"$f":"$C$18+tab_lines[[#This Row],[Index]]-1","v":91},{"$f":"tab_lines[[#This Row],[Index]]<=$C$19","v":true},{"$f":"IF(tab_lines[[#This Row],[Relevant]],INDEX(tab_data[City],tab_lines[[#This Row],[Index Targets]]),\"-\")","v":"Albuquerque, New Mexico"},4089,35.084490000000002,-106.65114,560266,{"$f":"IF(tab_lines[[#This Row],[Relevant]],VLOOKUP(tab_lines[[#This Row],[Value]],tab_line_widths[],2,TRUE),0)","v":{"$error":"#N/A"}}]
[null,13,{"$f":"$C$18+tab_lines[[#This Row],[Index]]-1","v":92},{"$f":"tab_lines[[#This Row],[Index]]<=$C$19","v":true},{"$f":"IF(tab_lines[[#This Row],[Relevant]],INDEX(tab_data[City],tab_lines[[#This Row],[Index Targets]]),\"-\")","v":"The Village, Oklahoma"},5005,35.560890000000001,-97.551429999999996,273333,{"$f":"IF(tab_lines[[#This Row],[Relevant]],VLOOKUP(tab_lines[[#This Row],[Value]],tab_line_widths[],2,TRUE),0)","v":{"$error":"#N/A"}}]
[null,14,{"$f":"$C$18+tab_lines[[#This Row],[Index]]-1","v":93},{"$f":"tab_lines[[#This Row],[Index]]<=$C$19","v":true},{"$f":"IF(tab_lines[[#This Row],[Relevant]],INDEX(tab_data[City],tab_lines[[#This Row],[Index Targets]]),\"-\")","v":"Blytheville, Arkansas"},224,35.927300000000002,-89.918980000000005,69061,{"$f":"IF(tab_lines[[#This Row],[Relevant]],VLOOKUP(tab_lines[[#This Row],[Value]],tab_line_widths[],2,TRUE),0)","v":{"$error":"#N/A"}}]
[null,15,{"$f":"$C$18+tab_lines[[#This Row],[Index]]-1","v":94},{"$f":"tab_lines[[#This Row],[Index]]<=$C$19","v":true},{"$f":"IF(tab_lines[[#This Row],[Relevant]],INDEX(tab_data[City],tab_lines[[#This Row],[Index Targets]]),\"-\")","v":"Nashville, Tennessee"},5611,36.165889999999997,-86.784440000000004,196645,{"$f":"IF(tab_lines[[#This Row],[Relevant]],VLOOKUP(tab_lines[[#This Row],[Value]],tab_line_widths[],2,TRUE),0)","v":{"$error":"#N/A"}}]
[null,16,{"$f":"$C$18+tab_lines[[#This Row],[Index]]-1","v":95},{"$f":"tab_lines[[#This Row],[Index]]<=$C$19","v":false},{"$f":"IF(tab_lines[[#This Row],[Relevant]],INDEX(tab_data[City],tab_lines[[#This Row],[Index Targets]]),\"-\")","v":"-"},"-",{"$error":"#N/A"},{"$error":"#N/A"},{"$error":"#N/A"},{"$f":"IF(tab_lines[[#This Row],[Relevant]],VLOOKUP(tab_lines[[#This Row],[Value]],tab_line_widths[],2,TRUE),0)","v":0}]
[null,17,{"$f":"$C$18+tab_lines[[#This Row],[Index]]-1","v":96},{"$f":"tab_lines[[#This Row],[Index]]<=$C$19","v":false},{"$f":"IF(tab_lines[[#This Row],[Relevant]],INDEX(tab_data[City],tab_lines[[#This Row],[Index Targets]]),\"-\")","v":"-"},"-",{"$error":"#N/A"},{"$error":"#N/A"},{"$error":"#N/A"},{"$f":"IF(tab_lines[[#This Row],[Relevant]],VLOOKUP(tab_lines[[#This Row],[Value]],tab_line_widths[],2,TRUE),0)","v":0}]
[null,18,{"$f":"$C$18+tab_lines[[#This Row],[Index]]-1","v":97},{"$f":"tab_lines[[#This Row],[Index]]<=$C$19","v":false},{"$f":"IF(tab_lines[[#This Row],[Relevant]],INDEX(tab_data[City],tab_lines[[#This Row],[Index Targets]]),\"-\")","v":"-"},"-",{"$error":"#N/A"},{"$error":"#N/A"},{"$error":"#N/A"},{"$f":"IF(tab_lines[[#This Row],[Relevant]],VLOOKUP(tab_lines[[#This Row],[Value]],tab_line_widths[],2,TRUE),0)","v":0}]
[null,19,{"$f":"$C$18+tab_lines[[#This Row],[Index]]-1","v":98},{"$f":"tab_lines[[#This Row],[Index]]<=$C$19","v":false},{"$f":"IF(tab_lines[[#This Row],[Relevant]],INDEX(tab_data[City],tab_lines[[#This Row],[Index Targets]]),\"-\")","v":"-"},"-",{"$error":"#N/A"},{"$error":"#N/A"},{"$error":"#N/A"},{"$f":"IF(tab_lines[[#This Row],[Relevant]],VLOOKUP(tab_lines[[#This Row],[Value]],tab_line_widths[],2,TRUE),0)","v":0}]
[null,20,{"$f":"$C$18+tab_lines[[#This Row],[Index]]-1","v":99},{"$f":"tab_lines[[#This Row],[Index]]<=$C$19","v":false},{"$f":"IF(tab_lines[[#This Row],[Relevant]],INDEX(tab_data[City],tab_lines[[#This Row],[Index Targets]]),\"-\")","v":"-"},"-",{"$error":"#N/A"},{"$error":"#N/A"},{"$error":"#N/A"},{"$f":"IF(tab_lines[[#This Row],[Relevant]],VLOOKUP(tab_lines[[#This Row],[Value]],tab_line_widths[],2,TRUE),0)","v":0}]
[null,21,{"$f":"$C$18+tab_lines[[#This Row],[Index]]-1","v":100},{"$f":"tab_lines[[#This Row],[Index]]<=$C$19","v":false},{"$f":"IF(tab_lines[[#This Row],[Relevant]],INDEX(tab_data[City],tab_lines[[#This Row],[Index Targets]]),\"-\")","v":"-"},"-",{"$error":"#N/A"},{"$error":"#N/A"},{"$error":"#N/A"},{"$f":"IF(tab_lines[[#This Row],[Relevant]],VLOOKUP(tab_lines[[#This Row],[Value]],tab_line_widths[],2,TRUE),0)","v":0}]
[null,22,{"$f":"$C$18+tab_lines[[#This Row],[Index]]-1","v":101},{"$f":"tab_lines[[#This Row],[Index]]<=$C$19","v":false},{"$f":"IF(tab_lines[[#This Row],[Relevant]],INDEX(tab_data[City],tab_lines[[#This Row],[Index Targets]]),\"-\")","v":"-"},"-",{"$error":"#N/A"},{"$error":"#N/A"},{"$error":"#N/A"},{"$f":"IF(tab_lines[[#This Row],[Relevant]],VLOOKUP(tab_lines[[#This Row],[Value]],tab_line_widths[],2,TRUE),0)","v":0}]
[null,23,{"$f":"$C$18+tab_lines[[#This Row],[Index]]-1","v":102},{"$f":"tab_lines[[#This Row],[Index]]<=$C$19","v":false},{"$f":"IF(tab_lines[[#This Row],[Relevant]],INDEX(tab_data[City],tab_lines[[#This Row],[Index Targets]]),\"-\")","v":"-"},"-",{"$error":"#N/A"},{"$error":"#N/A"},{"$error":"#N/A"},{"$f":"IF(tab_lines[[#This Row],[Relevant]],VLOOKUP(tab_lines[[#This Row],[Value]],tab_line_widths[],2,TRUE),0)","v":0}]
[null,24,{"$f":"$C$18+tab_lines[[#This Row],[Index]]-1","v":103},{"$f":"tab_lines[[#This Row],[Index]]<=$C$19","v":false},{"$f":"IF(tab_lines[[#This Row],[Relevant]],INDEX(tab_data[City],tab_lines[[#This Row],[Index Targets]]),\"-\")","v":"-"},"-",{"$error":"#N/A"},{"$error":"#N/A"},{"$error":"#N/A"},{"$f":"IF(tab_lines[[#This Row],[Relevant]],VLOOKUP(tab_lines[[#This Row],[Value]],tab_line_widths[],2,TRUE),0)","v":0}]
[null,25,{"$f":"$C$18+tab_lines[[#This Row],[Index]]-1","v":104},{"$f":"tab_lines[[#This Row],[Index]]<=$C$19","v":false},{"$f":"IF(tab_lines[[#This Row],[Relevant]],INDEX(tab_data[City],tab_lines[[#This Row],[Index Targets]]),\"-\")","v":"-"},"-",{"$error":"#N/A"},{"$error":"#N/A"},{"$error":"#N/A"},{"$f":"IF(tab_lines[[#This Row],[Relevant]],VLOOKUP(tab_lines[[#This Row],[Value]],tab_line_widths[],2,TRUE),0)","v":0}]
[null,26,{"$f":"$C$18+tab_lines[[#This Row],[Index]]-1","v":105},{"$f":"tab_lines[[#This Row],[Index]]<=$C$19","v":false},{"$f":"IF(tab_lines[[#This Row],[Relevant]],INDEX(tab_data[City],tab_lines[[#This Row],[Index Targets]]),\"-\")","v":"-"},"-",{"$error":"#N/A"},{"$error":"#N/A"},{"$error":"#N/A"},{"$f":"IF(tab_lines[[#This Row],[Relevant]],VLOOKUP(tab_lines[[#This Row],[Value]],tab_line_widths[],2,TRUE),0)","v":0}]
[null,27,{"$f":"$C$18+tab_lines[[#This Row],[Index]]-1","v":106},{"$f":"tab_lines[[#This Row],[Index]]<=$C$19","v":false},{"$f":"IF(tab_lines[[#This Row],[Relevant]],INDEX(tab_data[City],tab_lines[[#This Row],[Index Targets]]),\"-\")","v":"-"},"-",{"$error":"#N/A"},{"$error":"#N/A"},{"$error":"#N/A"},{"$f":"IF(tab_lines[[#This Row],[Relevant]],VLOOKUP(tab_lines[[#This Row],[Value]],tab_line_widths[],2,TRUE),0)","v":0}]
[null,28,{"$f":"$C$18+tab_lines[[#This Row],[Index]]-1","v":107},{"$f":"tab_lines[[#This Row],[Index]]<=$C$19","v":false},{"$f":"IF(tab_lines[[#This Row],[Relevant]],INDEX(tab_data[City],tab_lines[[#This Row],[Index Targets]]),\"-\")","v":"-"},"-",{"$error":"#N/A"},{"$error":"#N/A"},{"$error":"#N/A"},{"$f":"IF(tab_lines[[#This Row],[Relevant]],VLOOKUP(tab_lines[[#This Row],[Value]],tab_line_widths[],2,TRUE),0)","v":0}]
[null,29,{"$f":"$C$18+tab_lines[[#This Row],[Index]]-1","v":108},{"$f":"tab_lines[[#This Row],[Index]]<=$C$19","v":false},{"$f":"IF(tab_lines[[#This Row],[Relevant]],INDEX(tab_data[City],tab_lines[[#This Row],[Index Targets]]),\"-\")","v":"-"},"-",{"$error":"#N/A"},{"$error":"#N/A"},{"$error":"#N/A"},{"$f":"IF(tab_lines[[#This Row],[Relevant]],VLOOKUP(tab_lines[[#This Row],[Value]],tab_line_widths[],2,TRUE),0)","v":0}]
[null,30,{"$f":"$C$18+tab_lines[[#This Row],[Index]]-1","v":109},{"$f":"tab_lines[[#This Row],[Index]]<=$C$19","v":false},{"$f":"IF(tab_lines[[#This Row],[Relevant]],INDEX(tab_data[City],tab_lines[[#This Row],[Index Targets]]),\"-\")","v":"-"},"-",{"$error":"#N/A"},{"$error":"#N/A"},{"$error":"#N/A"},{"$f":"IF(tab_lines[[#This Row],[Relevant]],VLOOKUP(tab_lines[[#This Row],[Value]],tab_line_widths[],2,TRUE),0)","v":0}]